[Event "Titled Tuesday Blitz November 29 Late 2022"]
[White "Shimanov, Aleksandr"]
[Black "Korobov, Anton"]
[WhiteFideId "4198603"]
[BlackFideId "14105730"]
[WhiteElo "2605"]
[BlackElo "2635"]
[Result "1-0"]
[Round "10"]
[TimeControl "180+1"]
[Date "2022.11.30"]
[WhiteClock "0:00:21"]
[BlackClock "0:00:24"]

1. e4 {[%clk 0:03:00]}  c5 {[%clk 0:02:59]} 2. Nf3 {[%clk 0:02:59]}  d6 {[%clk 0:02:59]} 3. d4 {[%clk 0:02:59]}  cxd4 {[%clk 0:03:00]} 4. Qxd4 {[%clk 0:03:00]}  Nf6 {[%clk 0:03:00]} 5. Bg5 {[%clk 0:03:00]}  Nc6 {[%clk 0:02:57]} 6. Bb5 {[%clk 0:03:00]}  Bd7 {[%clk 0:02:57]} 7. Qd3 {[%clk 0:03:00]}  e6 {[%clk 0:02:51]} 8. Nc3 {[%clk 0:02:59]}  Be7 {[%clk 0:02:46]} 9. O-O-O {[%clk 0:02:59]}  a6 {[%clk 0:02:30]} 10. Bxc6 {[%clk 0:02:59]}  Bxc6 {[%clk 0:02:31]} 11. Nd4 {[%clk 0:02:59]}  O-O {[%clk 0:02:30]} 12. f4 {[%clk 0:02:58]}  Qa5 {[%clk 0:02:26]} 13. Rhe1 {[%clk 0:02:51]}  Rfc8 {[%clk 0:02:19]} 14. f5 {[%clk 0:02:20]}  Bd7 {[%clk 0:02:13]} 15. Kb1 {[%clk 0:02:12]}  b5 {[%clk 0:02:05]} 16. fxe6 {[%clk 0:02:10]}  fxe6 {[%clk 0:02:06]} 17. e5 {[%clk 0:02:08]}  dxe5 {[%clk 0:02:06]} 18. Rxe5 {[%clk 0:02:09]}  Qc7 {[%clk 0:01:47]} 19. Rde1 {[%clk 0:02:04]}  b4 {[%clk 0:01:44]} 20. Nxe6 {[%clk 0:01:57]}  Qb7 {[%clk 0:01:11]} 21. Nd5 {[%clk 0:01:31]}  Nxd5 {[%clk 0:01:02]} 22. Rxd5 {[%clk 0:01:22]}  Bc6 {[%clk 0:00:49]} 23. Qd4 {[%clk 0:01:12]}  Bf8 {[%clk 0:00:41]} 24. Rd8 {[%clk 0:01:07]}  Qf7 {[%clk 0:00:34]} 25. Nxf8 {[%clk 0:00:25]}  Rxd8 {[%clk 0:00:33]} 26. Bxd8 {[%clk 0:00:26]}  Qxf8 {[%clk 0:00:34]} 27. Be7 {[%clk 0:00:26]}  Qf7 {[%clk 0:00:34]} 28. Bxb4 {[%clk 0:00:25]}  Bxg2 {[%clk 0:00:34]} 29. b3 {[%clk 0:00:25]}  Re8 {[%clk 0:00:28]} 30. Rxe8+ {[%clk 0:00:23]}  Qxe8 {[%clk 0:00:29]} 31. Qc4+ {[%clk 0:00:24]}  Kh8 {[%clk 0:00:25]} 32. Qxa6 {[%clk 0:00:24]}  Be4 {[%clk 0:00:25]} 33. Qd6 {[%clk 0:00:22]}  h5 {[%clk 0:00:24]} 34. Qf8+ {[%clk 0:00:22]}  Qxf8 {[%clk 0:00:24]} 35. Bxf8 {[%clk 0:00:23]}  g5 {[%clk 0:00:24]} 36. Be7 {[%clk 0:00:23]}  Kh7 {[%clk 0:00:25]} 37. Bxg5 {[%clk 0:00:21]}  Kg6 {[%clk 0:00:24]} 38. h4 {[%clk 0:00:21]} 1-0


[Site "https://www.chess.com"]

[Event "Titled Tuesday Blitz November 29 Late 2022"]
[White "Souleidis, Georgios"]
[Black "Maksimovic, Bojan"]
[WhiteFideId "4206827"]
[BlackFideId "14408120"]
[WhiteElo "2401"]
[BlackElo "2447"]
[Result "0-1"]
[Round "10"]
[TimeControl "180+1"]
[Date "2022.11.30"]
[WhiteClock "0:00:13"]
[BlackClock "0:00:53"]

1. e4 {[%clk 0:03:00]}  c5 {[%clk 0:02:59]} 2. Be2 {[%clk 0:03:00]}  d5 {[%clk 0:02:57]} 3. exd5 {[%clk 0:03:00]}  Qxd5 {[%clk 0:02:58]} 4. Nf3 {[%clk 0:02:58]}  Nc6 {[%clk 0:02:58]} 5. Nc3 {[%clk 0:02:58]}  Qd8 {[%clk 0:02:57]} 6. O-O {[%clk 0:02:58]}  Nf6 {[%clk 0:02:57]} 7. Re1 {[%clk 0:02:58]}  e6 {[%clk 0:02:55]} 8. Bb5 {[%clk 0:02:55]}  Bd7 {[%clk 0:02:53]} 9. d3 {[%clk 0:02:52]}  Be7 {[%clk 0:02:39]} 10. h3 {[%clk 0:02:52]}  O-O {[%clk 0:02:37]} 11. Ne4 {[%clk 0:02:47]}  Nd4 {[%clk 0:02:24]} 12. Bxd7 {[%clk 0:02:43]}  Qxd7 {[%clk 0:02:25]} 13. Ne5 {[%clk 0:02:34]}  Qc7 {[%clk 0:02:23]} 14. Nc4 {[%clk 0:02:22]}  Rad8 {[%clk 0:02:07]} 15. c3 {[%clk 0:02:20]}  Nc6 {[%clk 0:02:04]} 16. a4 {[%clk 0:01:34]}  Nxe4 {[%clk 0:01:51]} 17. Rxe4 {[%clk 0:01:35]}  Rd5 {[%clk 0:01:51]} 18. Qe2 {[%clk 0:00:45]}  Rfd8 {[%clk 0:01:49]} 19. Bf4 {[%clk 0:00:41]}  Qd7 {[%clk 0:01:43]} 20. Re3 {[%clk 0:00:24]}  Rxd3 {[%clk 0:01:37]} 21. Rxd3 {[%clk 0:00:24]}  Qxd3 {[%clk 0:01:37]} 22. Qxd3 {[%clk 0:00:25]}  Rxd3 {[%clk 0:01:38]} 23. Kf1 {[%clk 0:00:26]}  f6 {[%clk 0:01:36]} 24. Be3 {[%clk 0:00:26]}  Kf7 {[%clk 0:01:34]} 25. Ke2 {[%clk 0:00:26]}  Rd8 {[%clk 0:01:34]} 26. a5 {[%clk 0:00:26]}  e5 {[%clk 0:01:31]} 27. g4 {[%clk 0:00:26]}  Ke6 {[%clk 0:01:28]} 28. f3 {[%clk 0:00:26]}  g6 {[%clk 0:01:28]} 29. b3 {[%clk 0:00:25]}  Rd7 {[%clk 0:01:20]} 30. Bd2 {[%clk 0:00:25]}  Rd8 {[%clk 0:01:19]} 31. Be3 {[%clk 0:00:24]}  Rh8 {[%clk 0:01:18]} 32. Bd2 {[%clk 0:00:20]}  h5 {[%clk 0:01:17]} 33. Ne3 {[%clk 0:00:15]}  hxg4 {[%clk 0:01:16]} 34. hxg4 {[%clk 0:00:16]}  Rh2+ {[%clk 0:00:57]} 35. Kd3 {[%clk 0:00:16]}  f5 {[%clk 0:00:58]} 36. gxf5+ {[%clk 0:00:17]}  gxf5 {[%clk 0:00:59]} 37. Be1 {[%clk 0:00:13]}  e4+ {[%clk 0:00:53]} 38. fxe4 {[%clk 0:00:13]}  Ne5# {[%clk 0:00:53]} 0-1


[Site "https://www.chess.com"]

[Event "Titled Tuesday Blitz November 29 Late 2022"]
[White "Stanisz, Patryk"]
[Black "Vargas, Mauricio"]
[WhiteFideId "1123106"]
[BlackFideId "4404572"]
[WhiteElo "2069"]
[BlackElo "2025"]
[Result "1-0"]
[Round "10"]
[TimeControl "180+1"]
[Date "2022.11.30"]
[WhiteClock "0:01:16"]
[BlackClock "0:00:02"]

1. Nf3 {[%clk 0:02:58]}  d5 {[%clk 0:00:36]} 2. d4 {[%clk 0:02:55]}  c6 {[%clk 0:00:35]} 3. c4 {[%clk 0:02:56]}  Bg4 {[%clk 0:00:34]} 4. Ne5 {[%clk 0:02:55]}  Bh5 {[%clk 0:00:34]} 5. cxd5 {[%clk 0:02:55]}  cxd5 {[%clk 0:00:32]} 6. Nc3 {[%clk 0:02:54]}  a6 {[%clk 0:00:32]} 7. a4 {[%clk 0:02:52]}  f6 {[%clk 0:00:32]} 8. Nf3 {[%clk 0:02:51]}  Nc6 {[%clk 0:00:31]} 9. Qb3 {[%clk 0:02:51]}  Rb8 {[%clk 0:00:28]} 10. e3 {[%clk 0:02:41]}  e6 {[%clk 0:00:24]} 11. Be2 {[%clk 0:02:34]}  Bd6 {[%clk 0:00:24]} 12. O-O {[%clk 0:02:28]}  Bc7 {[%clk 0:00:22]} 13. e4 {[%clk 0:02:20]}  dxe4 {[%clk 0:00:19]} 14. Qxe6+ {[%clk 0:02:17]}  Nge7 {[%clk 0:00:17]} 15. Nxe4 {[%clk 0:02:11]}  Bf7 {[%clk 0:00:16]} 16. Qg4 {[%clk 0:02:00]}  O-O {[%clk 0:00:13]} 17. Nxf6+ {[%clk 0:02:00]}  Kh8 {[%clk 0:00:11]} 18. Nh5 {[%clk 0:01:56]}  Bg6 {[%clk 0:00:06]} 19. Bd3 {[%clk 0:01:31]}  Qd6 {[%clk 0:00:06]} 20. Bf4 {[%clk 0:01:21]}  Rxf4 {[%clk 0:00:05]} 21. Nxf4 {[%clk 0:01:20]}  Bxd3 {[%clk 0:00:05]} 22. Nxd3 {[%clk 0:01:18]}  Rf8 {[%clk 0:00:02]} 23. Nde5 {[%clk 0:01:16]} 1-0


[Site "https://www.chess.com"]

[Event "Titled Tuesday Blitz November 29 Late 2022"]
[White "Suder, Jakub"]
[Black "Lewtak, Damian"]
[WhiteFideId "1195310"]
[BlackFideId "1141724"]
[WhiteElo "2243"]
[BlackElo "2329"]
[Result "1-0"]
[Round "10"]
[TimeControl "180+1"]
[Date "2022.11.30"]
[WhiteClock "0:00:12"]
[BlackClock "0:00:19"]

1. d4 {[%clk 0:02:58]}  d5 {[%clk 0:03:00]} 2. c4 {[%clk 0:02:53]}  c6 {[%clk 0:03:00]} 3. cxd5 {[%clk 0:02:53]}  cxd5 {[%clk 0:03:01]} 4. Bg5 {[%clk 0:02:52]}  Nf6 {[%clk 0:03:00]} 5. Bxf6 {[%clk 0:02:52]}  exf6 {[%clk 0:03:01]} 6. Nc3 {[%clk 0:02:53]}  Nc6 {[%clk 0:03:00]} 7. e3 {[%clk 0:02:53]}  Bb4 {[%clk 0:03:00]} 8. Ne2 {[%clk 0:02:54]}  O-O {[%clk 0:03:00]} 9. g3 {[%clk 0:02:54]}  Bg4 {[%clk 0:02:59]} 10. Rc1 {[%clk 0:02:53]}  Qa5 {[%clk 0:02:59]} 11. a3 {[%clk 0:02:50]}  Bxc3+ {[%clk 0:02:59]} 12. Rxc3 {[%clk 0:02:51]}  Rfe8 {[%clk 0:02:59]} 13. Qd2 {[%clk 0:02:46]}  Bf3 {[%clk 0:02:57]} 14. Rg1 {[%clk 0:02:46]}  Rac8 {[%clk 0:02:56]} 15. g4 {[%clk 0:02:45]}  h6 {[%clk 0:02:55]} 16. Rg3 {[%clk 0:02:44]}  Bxe2 {[%clk 0:02:52]} 17. Bxe2 {[%clk 0:02:43]}  Ne7 {[%clk 0:02:50]} 18. h4 {[%clk 0:02:41]}  Qb6 {[%clk 0:02:44]} 19. g5 {[%clk 0:02:37]}  Rxc3 {[%clk 0:02:43]} 20. Qxc3 {[%clk 0:02:37]}  Rc8 {[%clk 0:02:40]} 21. Qd2 {[%clk 0:02:36]}  Nf5 {[%clk 0:02:31]} 22. Rg4 {[%clk 0:02:36]}  fxg5 {[%clk 0:02:27]} 23. hxg5 {[%clk 0:02:35]}  h5 {[%clk 0:02:14]} 24. Rf4 {[%clk 0:02:35]}  Nd6 {[%clk 0:01:58]} 25. Bd3 {[%clk 0:02:22]}  g6 {[%clk 0:01:54]} 26. Rf6 {[%clk 0:02:19]}  Rc6 {[%clk 0:01:54]} 27. Kf1 {[%clk 0:01:57]}  Qc7 {[%clk 0:01:17]} 28. Kg1 {[%clk 0:01:51]}  Nc8 {[%clk 0:01:08]} 29. Rxc6 {[%clk 0:01:33]}  bxc6 {[%clk 0:01:08]} 30. f4 {[%clk 0:01:24]}  c5 {[%clk 0:01:02]} 31. Qc2 {[%clk 0:01:10]}  c4 {[%clk 0:01:01]} 32. Bxg6 {[%clk 0:01:10]}  fxg6 {[%clk 0:01:02]} 33. Qxg6+ {[%clk 0:01:10]}  Kf8 {[%clk 0:01:02]} 34. Qf5+ {[%clk 0:01:02]}  Ke8 {[%clk 0:00:56]} 35. g6 {[%clk 0:00:56]}  Qd7 {[%clk 0:00:47]} 36. Qxh5 {[%clk 0:00:45]}  Qg7 {[%clk 0:00:43]} 37. f5 {[%clk 0:00:27]}  Kf8 {[%clk 0:00:37]} 38. Qg5 {[%clk 0:00:18]}  Nd6 {[%clk 0:00:22]} 39. f6 {[%clk 0:00:17]}  Qd7 {[%clk 0:00:22]} 40. Qh6+ {[%clk 0:00:14]}  Kg8 {[%clk 0:00:20]} 41. f7+ {[%clk 0:00:15]}  Nxf7 {[%clk 0:00:19]} 42. Qh7+ {[%clk 0:00:12]}  Kf8 {[%clk 0:00:19]} 43. g7+ {[%clk 0:00:12]} 1-0


[Site "https://www.chess.com"]

[Event "Titled Tuesday Blitz November 29 Late 2022"]
[White "Torres Dominguez, David"]
[Black "Andreassen, Lars"]
[WhiteFideId "2220857"]
[BlackFideId "1504878"]
[WhiteElo "2037"]
[BlackElo "2119"]
[Result "0-1"]
[Round "10"]
[TimeControl "180+1"]
[Date "2022.11.30"]
[WhiteClock "0:00:48"]
[BlackClock "0:00:52"]

1. e4 {[%clk 0:02:54]}  d5 {[%clk 0:02:58]} 2. d3 {[%clk 0:02:54]}  dxe4 {[%clk 0:02:58]} 3. dxe4 {[%clk 0:02:55]}  Qxd1+ {[%clk 0:02:59]} 4. Kxd1 {[%clk 0:02:55]}  Nf6 {[%clk 0:03:00]} 5. f3 {[%clk 0:02:55]}  Nc6 {[%clk 0:02:59]} 6. Be3 {[%clk 0:02:55]}  Be6 {[%clk 0:02:58]} 7. Nd2 {[%clk 0:02:55]}  O-O-O {[%clk 0:02:59]} 8. c3 {[%clk 0:02:56]}  g6 {[%clk 0:02:58]} 9. Kc2 {[%clk 0:02:55]}  Bg7 {[%clk 0:02:55]} 10. Ne2 {[%clk 0:02:56]}  Nd7 {[%clk 0:02:55]} 11. Nf4 {[%clk 0:02:53]}  Nf8 {[%clk 0:02:54]} 12. Nxe6 {[%clk 0:02:52]}  Nxe6 {[%clk 0:02:54]} 13. Bc4 {[%clk 0:02:50]}  Rd6 {[%clk 0:02:50]} 14. b4 {[%clk 0:02:31]}  Rhd8 {[%clk 0:02:43]} 15. Rad1 {[%clk 0:02:30]}  a6 {[%clk 0:02:41]} 16. Bb3 {[%clk 0:02:27]}  b5 {[%clk 0:02:39]} 17. a4 {[%clk 0:02:25]}  f5 {[%clk 0:02:18]} 18. axb5 {[%clk 0:02:24]}  axb5 {[%clk 0:02:18]} 19. Rhe1 {[%clk 0:02:20]}  Nf8 {[%clk 0:02:16]} 20. Bf4 {[%clk 0:02:13]}  e5 {[%clk 0:02:16]} 21. Bg5 {[%clk 0:02:12]}  R8d7 {[%clk 0:02:13]} 22. Nf1 {[%clk 0:02:08]}  h6 {[%clk 0:02:08]} 23. Bh4 {[%clk 0:02:06]}  g5 {[%clk 0:02:03]} 24. Bf2 {[%clk 0:02:06]}  fxe4 {[%clk 0:01:59]} 25. fxe4 {[%clk 0:02:05]}  Ng6 {[%clk 0:01:58]} 26. g3 {[%clk 0:01:59]}  Kd8 {[%clk 0:01:54]} 27. Bc5 {[%clk 0:01:59]}  Rxd1 {[%clk 0:01:53]} 28. Rxd1 {[%clk 0:01:59]}  Rxd1 {[%clk 0:01:46]} 29. Kxd1 {[%clk 0:01:59]}  Kd7 {[%clk 0:01:46]} 30. Ne3 {[%clk 0:01:58]}  Nge7 {[%clk 0:01:41]} 31. Ke2 {[%clk 0:01:54]}  h5 {[%clk 0:01:35]} 32. Nd5 {[%clk 0:01:48]}  Nxd5 {[%clk 0:01:34]} 33. Bxd5 {[%clk 0:01:41]}  Ne7 {[%clk 0:01:34]} 34. Bb3 {[%clk 0:01:40]}  Bf6 {[%clk 0:01:23]} 35. Bd1 {[%clk 0:01:40]}  Nc8 {[%clk 0:01:14]} 36. Be3 {[%clk 0:01:38]}  Nd6 {[%clk 0:01:13]} 37. Kd3 {[%clk 0:01:38]}  g4 {[%clk 0:01:12]} 38. Be2 {[%clk 0:01:31]}  Nc4 {[%clk 0:01:07]} 39. Bc1 {[%clk 0:01:27]}  Nd6 {[%clk 0:01:06]} 40. Kc2 {[%clk 0:01:25]}  c6 {[%clk 0:01:06]} 41. Kb3 {[%clk 0:01:25]}  Nxe4 {[%clk 0:01:05]} 42. c4 {[%clk 0:01:19]}  bxc4+ {[%clk 0:01:04]} 43. Kxc4 {[%clk 0:01:16]}  Nd6+ {[%clk 0:01:04]} 44. Kc5 {[%clk 0:01:13]}  Be7 {[%clk 0:01:04]} 45. Kb6 {[%clk 0:01:11]}  Bd8+ {[%clk 0:01:03]} 46. Kc5 {[%clk 0:01:08]}  Ne4+ {[%clk 0:01:03]} 47. Kc4 {[%clk 0:01:07]}  Be7 {[%clk 0:00:59]} 48. Be3 {[%clk 0:01:05]}  Nd6+ {[%clk 0:00:58]} 49. Kc3 {[%clk 0:01:03]}  Nf5 {[%clk 0:00:58]} 50. Bb6 {[%clk 0:00:54]}  Bd6 {[%clk 0:00:55]} 51. Bd3 {[%clk 0:00:52]}  Ne7 {[%clk 0:00:55]} 52. Kc4 {[%clk 0:00:49]}  Nd5 {[%clk 0:00:52]} 53. Be4 {[%clk 0:00:48]}  Nxb6+ {[%clk 0:00:52]} 0-1


[Site "https://www.chess.com"]

[Event "Titled Tuesday Blitz November 29 Late 2022"]
[White "Vasques, Antonio Pedro Freixial"]
[Black "Curtis, John"]
[WhiteFideId "1908332"]
[BlackFideId "3200256"]
[WhiteElo "2243"]
[BlackElo "2203"]
[Result "1-0"]
[Round "10"]
[TimeControl "180+1"]
[Date "2022.11.30"]
[WhiteClock "0:01:35"]
[BlackClock "0:00:10"]

1. e4 {[%clk 0:03:00]}  c5 {[%clk 0:02:54]} 2. Nc3 {[%clk 0:03:00]}  e6 {[%clk 0:02:52]} 3. Nge2 {[%clk 0:02:58]}  d5 {[%clk 0:02:51]} 4. exd5 {[%clk 0:02:56]}  exd5 {[%clk 0:02:51]} 5. d4 {[%clk 0:02:57]}  Nc6 {[%clk 0:02:51]} 6. dxc5 {[%clk 0:02:48]}  d4 {[%clk 0:02:47]} 7. Ne4 {[%clk 0:02:48]}  Bxc5 {[%clk 0:02:39]} 8. Nxc5 {[%clk 0:02:45]}  Qa5+ {[%clk 0:02:39]} 9. Bd2 {[%clk 0:02:46]}  Qxc5 {[%clk 0:02:38]} 10. Nf4 {[%clk 0:02:45]}  Nf6 {[%clk 0:02:33]} 11. Bd3 {[%clk 0:02:44]}  O-O {[%clk 0:02:33]} 12. O-O {[%clk 0:02:44]}  Bg4 {[%clk 0:02:23]} 13. f3 {[%clk 0:02:38]}  Bd7 {[%clk 0:02:14]} 14. Qe1 {[%clk 0:02:37]}  Rfe8 {[%clk 0:02:00]} 15. Qh4 {[%clk 0:02:35]}  Nb4 {[%clk 0:01:34]} 16. Bxb4 {[%clk 0:02:19]}  Qxb4 {[%clk 0:01:33]} 17. Rae1 {[%clk 0:02:19]}  Rxe1 {[%clk 0:01:32]} 18. Rxe1 {[%clk 0:02:20]}  Qxb2 {[%clk 0:01:22]} 19. Nd5 {[%clk 0:02:20]}  Be6 {[%clk 0:00:58]} 20. Nxf6+ {[%clk 0:02:07]}  gxf6 {[%clk 0:00:58]} 21. Qh6 {[%clk 0:01:37]}  f5 {[%clk 0:00:46]} 22. Rxe6 {[%clk 0:01:38]}  fxe6 {[%clk 0:00:28]} 23. Qxe6+ {[%clk 0:01:39]}  Kg7 {[%clk 0:00:22]} 24. Qe5+ {[%clk 0:01:38]}  Kf8 {[%clk 0:00:11]} 25. Qf6+ {[%clk 0:01:34]}  Ke8 {[%clk 0:00:11]} 26. Qh8+ {[%clk 0:01:25]}  Ke7 {[%clk 0:00:10]} 27. Qxa8 {[%clk 0:01:26]}  Qc1+ {[%clk 0:00:09]} 28. Bf1 {[%clk 0:01:25]}  Qe3+ {[%clk 0:00:08]} 29. Kh1 {[%clk 0:01:25]}  Qf2 {[%clk 0:00:07]} 30. Qxb7+ {[%clk 0:01:25]}  Kf6 {[%clk 0:00:07]} 31. Qa6+ {[%clk 0:01:25]}  Kg5 {[%clk 0:00:06]} 32. Qe2 {[%clk 0:01:26]}  Qxe2 {[%clk 0:00:02]} 33. Bxe2 {[%clk 0:01:27]}  Kf4 {[%clk 0:00:03]} 34. Bd3 {[%clk 0:01:26]}  Ke5 {[%clk 0:00:03]} 35. g3 {[%clk 0:01:26]}  f4 {[%clk 0:00:04]} 36. g4 {[%clk 0:01:26]}  h6 {[%clk 0:00:04]} 37. h4 {[%clk 0:01:26]}  Kf6 {[%clk 0:00:03]} 38. Kg2 {[%clk 0:01:26]}  a5 {[%clk 0:00:04]} 39. Kf2 {[%clk 0:01:26]}  a4 {[%clk 0:00:04]} 40. Ke2 {[%clk 0:01:27]}  a3 {[%clk 0:00:05]} 41. Kd2 {[%clk 0:01:27]}  Ke5 {[%clk 0:00:05]} 42. c3 {[%clk 0:01:27]}  dxc3+ {[%clk 0:00:05]} 43. Kxc3 {[%clk 0:01:28]}  Kd5 {[%clk 0:00:05]} 44. g5 {[%clk 0:01:28]}  hxg5 {[%clk 0:00:04]} 45. hxg5 {[%clk 0:01:29]}  Ke5 {[%clk 0:00:05]} 46. g6 {[%clk 0:01:30]}  Kf6 {[%clk 0:00:05]} 47. Kb3 {[%clk 0:01:31]}  Kg7 {[%clk 0:00:06]} 48. Kxa3 {[%clk 0:01:32]}  Kf6 {[%clk 0:00:06]} 49. Kb3 {[%clk 0:01:33]}  Kg7 {[%clk 0:00:07]} 50. a4 {[%clk 0:01:33]}  Kf6 {[%clk 0:00:08]} 51. a5 {[%clk 0:01:34]}  Kg7 {[%clk 0:00:09]} 52. a6 {[%clk 0:01:35]}  Kf6 {[%clk 0:00:10]} 53. a7 {[%clk 0:01:35]} 1-0


[Site "https://www.chess.com"]

[Event "Titled Tuesday Blitz November 29 Late 2022"]
[White "Young, Ryan"]
[Black "Marcolino, Daniel Mattos"]
[WhiteFideId "2049945"]
[BlackFideId "2106841"]
[WhiteElo "2271"]
[BlackElo "2127"]
[Result "0-1"]
[Round "10"]
[TimeControl "180+1"]
[Date "2022.11.30"]
[WhiteClock "0:00:21"]
[BlackClock "0:00:33"]

1. e4 {[%clk 0:03:00]}  c6 {[%clk 0:02:56]} 2. Nf3 {[%clk 0:02:59]}  d5 {[%clk 0:02:57]} 3. Nc3 {[%clk 0:03:00]}  Bg4 {[%clk 0:02:56]} 4. h3 {[%clk 0:02:59]}  Bxf3 {[%clk 0:02:56]} 5. Qxf3 {[%clk 0:03:00]}  Nf6 {[%clk 0:02:56]} 6. e5 {[%clk 0:02:55]}  Nfd7 {[%clk 0:02:55]} 7. d4 {[%clk 0:02:51]}  e6 {[%clk 0:02:55]} 8. Be2 {[%clk 0:02:36]}  c5 {[%clk 0:02:55]} 9. Be3 {[%clk 0:02:22]}  cxd4 {[%clk 0:02:52]} 10. Bxd4 {[%clk 0:02:22]}  Nc6 {[%clk 0:02:53]} 11. Qe3 {[%clk 0:02:17]}  Nxd4 {[%clk 0:02:48]} 12. Qxd4 {[%clk 0:02:17]}  Bc5 {[%clk 0:02:48]} 13. Qf4 {[%clk 0:02:11]}  Qc7 {[%clk 0:02:41]} 14. Bb5 {[%clk 0:02:10]}  O-O {[%clk 0:02:29]} 15. Bxd7 {[%clk 0:02:10]}  Qxd7 {[%clk 0:02:30]} 16. O-O {[%clk 0:02:09]}  f6 {[%clk 0:02:21]} 17. Rae1 {[%clk 0:01:58]}  fxe5 {[%clk 0:02:20]} 18. Qxe5 {[%clk 0:01:58]}  Rf6 {[%clk 0:02:14]} 19. Re2 {[%clk 0:01:46]}  Raf8 {[%clk 0:02:14]} 20. Ne4 {[%clk 0:01:25]}  Rf5 {[%clk 0:02:00]} 21. Nxc5 {[%clk 0:01:24]}  Rxe5 {[%clk 0:01:56]} 22. Nxd7 {[%clk 0:01:23]}  Rxe2 {[%clk 0:01:57]} 23. Nxf8 {[%clk 0:01:23]}  Kxf8 {[%clk 0:01:57]} 24. Rc1 {[%clk 0:01:22]}  Ke7 {[%clk 0:01:51]} 25. Kf1 {[%clk 0:01:22]}  Re4 {[%clk 0:01:47]} 26. f3 {[%clk 0:01:20]}  Rd4 {[%clk 0:01:45]} 27. Ke2 {[%clk 0:01:20]}  Kd6 {[%clk 0:01:43]} 28. c3 {[%clk 0:01:15]}  Ra4 {[%clk 0:01:41]} 29. a3 {[%clk 0:01:13]}  Ra6 {[%clk 0:01:37]} 30. Kd3 {[%clk 0:01:12]}  Rb6 {[%clk 0:01:34]} 31. Kc2 {[%clk 0:01:12]}  e5 {[%clk 0:01:32]} 32. Re1 {[%clk 0:01:12]}  Rc6 {[%clk 0:01:30]} 33. Kd2 {[%clk 0:01:11]}  a5 {[%clk 0:01:28]} 34. b4 {[%clk 0:01:06]}  a4 {[%clk 0:01:27]} 35. Rc1 {[%clk 0:01:03]}  Rc4 {[%clk 0:01:27]} 36. Kd3 {[%clk 0:01:03]}  b5 {[%clk 0:01:27]} 37. Rc2 {[%clk 0:01:03]}  Rf4 {[%clk 0:01:25]} 38. Re2 {[%clk 0:01:02]}  Ke6 {[%clk 0:01:24]} 39. Kd2 {[%clk 0:01:00]}  Rf6 {[%clk 0:01:21]} 40. Re3 {[%clk 0:00:58]}  h5 {[%clk 0:01:21]} 41. Kd3 {[%clk 0:00:42]}  h4 {[%clk 0:01:20]} 42. Re2 {[%clk 0:00:42]}  Kf5 {[%clk 0:01:15]} 43. Rd2 {[%clk 0:00:41]}  Rd6 {[%clk 0:01:14]} 44. Ke3 {[%clk 0:00:40]}  Rc6 {[%clk 0:01:12]} 45. Kd3 {[%clk 0:00:37]}  e4+ {[%clk 0:01:06]} 46. fxe4+ {[%clk 0:00:36]}  dxe4+ {[%clk 0:01:07]} 47. Kc2 {[%clk 0:00:34]}  Kf4 {[%clk 0:00:59]} 48. Rd8 {[%clk 0:00:20]}  Rg6 {[%clk 0:00:54]} 49. c4 {[%clk 0:00:15]}  Rxg2+ {[%clk 0:00:50]} 50. Kc3 {[%clk 0:00:14]}  e3 {[%clk 0:00:50]} 51. cxb5 {[%clk 0:00:13]}  e2 {[%clk 0:00:50]} 52. Re8 {[%clk 0:00:14]}  Kf3 {[%clk 0:00:50]} 53. Rf8+ {[%clk 0:00:14]}  Kg3 {[%clk 0:00:47]} 54. Re8 {[%clk 0:00:15]}  Kf2 {[%clk 0:00:46]} 55. b6 {[%clk 0:00:16]}  Rg6 {[%clk 0:00:40]} 56. Kd2 {[%clk 0:00:10]}  Rd6+ {[%clk 0:00:39]} 57. Kc3 {[%clk 0:00:11]}  Rxb6 {[%clk 0:00:39]} 58. Rxe2+ {[%clk 0:00:11]}  Kxe2 {[%clk 0:00:37]} 59. Kc4 {[%clk 0:00:11]}  Kf3 {[%clk 0:00:36]} 60. Kc5 {[%clk 0:00:12]}  Rf6 {[%clk 0:00:35]} 61. b5 {[%clk 0:00:13]}  Kg3 {[%clk 0:00:35]} 62. b6 {[%clk 0:00:14]}  Kxh3 {[%clk 0:00:34]} 63. b7 {[%clk 0:00:15]}  Rf8 {[%clk 0:00:34]} 64. Kb5 {[%clk 0:00:16]}  Kg4 {[%clk 0:00:32]} 65. Kxa4 {[%clk 0:00:16]}  h3 {[%clk 0:00:33]} 66. Kb5 {[%clk 0:00:17]}  h2 {[%clk 0:00:34]} 67. a4 {[%clk 0:00:17]}  h1=Q {[%clk 0:00:34]} 68. a5 {[%clk 0:00:18]}  Qxb7+ {[%clk 0:00:34]} 69. Ka4 {[%clk 0:00:18]}  Rf4+ {[%clk 0:00:34]} 70. Ka3 {[%clk 0:00:19]}  Qb4+ {[%clk 0:00:33]} 71. Ka2 {[%clk 0:00:20]}  Rf2+ {[%clk 0:00:34]} 72. Ka1 {[%clk 0:00:21]}  Qb2# {[%clk 0:00:33]} 0-1


[Site "https://www.chess.com"]

[Event "Titled Tuesday Blitz November 29 Late 2022"]
[White "Yurovskykh, Oleksandr"]
[Black "Bogaudinov, Rushan"]
[WhiteFideId "14134020"]
[BlackFideId "4129288"]
[WhiteElo "2265"]
[BlackElo "1997"]
[Result "1-0"]
[Round "10"]
[TimeControl "180+1"]
[Date "2022.11.30"]
[WhiteClock "0:00:49"]
[BlackClock "0:00:11"]

1. d4 {[%clk 0:03:00]}  g6 {[%clk 0:02:58]} 2. e4 {[%clk 0:03:00]}  Bg7 {[%clk 0:02:58]} 3. c4 {[%clk 0:02:58]}  d6 {[%clk 0:02:57]} 4. Nc3 {[%clk 0:02:59]}  Nf6 {[%clk 0:02:54]} 5. Nf3 {[%clk 0:02:58]}  O-O {[%clk 0:02:53]} 6. Be2 {[%clk 0:02:59]}  c5 {[%clk 0:02:51]} 7. d5 {[%clk 0:02:57]}  e6 {[%clk 0:02:50]} 8. Nd2 {[%clk 0:02:47]}  exd5 {[%clk 0:02:46]} 9. cxd5 {[%clk 0:02:47]}  a6 {[%clk 0:02:40]} 10. a4 {[%clk 0:02:46]}  Nbd7 {[%clk 0:02:34]} 11. O-O {[%clk 0:02:45]}  Ne8 {[%clk 0:02:33]} 12. Nc4 {[%clk 0:02:42]}  Rb8 {[%clk 0:02:30]} 13. Bf4 {[%clk 0:02:39]}  Ne5 {[%clk 0:02:20]} 14. Nxe5 {[%clk 0:02:34]}  dxe5 {[%clk 0:02:21]} 15. Be3 {[%clk 0:02:32]}  b6 {[%clk 0:02:16]} 16. a5 {[%clk 0:02:31]}  Nd6 {[%clk 0:01:54]} 17. axb6 {[%clk 0:02:30]}  Rxb6 {[%clk 0:01:54]} 18. Na4 {[%clk 0:02:18]}  Rb4 {[%clk 0:01:47]} 19. f3 {[%clk 0:02:16]}  Rd4 {[%clk 0:01:46]} 20. Qc2 {[%clk 0:02:05]}  f5 {[%clk 0:01:39]} 21. Nxc5 {[%clk 0:02:02]}  fxe4 {[%clk 0:01:34]} 22. Bxd4 {[%clk 0:02:00]}  exf3 {[%clk 0:01:26]} 23. Bxf3 {[%clk 0:02:00]}  exd4 {[%clk 0:01:26]} 24. Ne6 {[%clk 0:02:00]}  Bxe6 {[%clk 0:01:25]} 25. dxe6 {[%clk 0:02:01]}  Nf5 {[%clk 0:01:19]} 26. Qb3 {[%clk 0:01:46]}  Kh8 {[%clk 0:01:16]} 27. Rxa6 {[%clk 0:01:44]}  d3 {[%clk 0:01:11]} 28. Ra5 {[%clk 0:01:25]}  Bd4+ {[%clk 0:01:08]} 29. Kh1 {[%clk 0:01:19]}  Qh4 {[%clk 0:01:05]} 30. Rxf5 {[%clk 0:01:19]}  gxf5 {[%clk 0:01:01]} 31. Qxd3 {[%clk 0:01:18]}  Be5 {[%clk 0:00:59]} 32. g3 {[%clk 0:01:13]}  Bxg3 {[%clk 0:00:53]} 33. Qe2 {[%clk 0:01:13]}  Bd6 {[%clk 0:00:46]} 34. Rd1 {[%clk 0:01:11]}  Qf4 {[%clk 0:00:38]} 35. Bc6 {[%clk 0:01:01]}  Qg4 {[%clk 0:00:24]} 36. Qxg4 {[%clk 0:00:54]}  fxg4 {[%clk 0:00:24]} 37. Rxd6 {[%clk 0:00:55]}  Rf1+ {[%clk 0:00:21]} 38. Kg2 {[%clk 0:00:55]}  Re1 {[%clk 0:00:22]} 39. Bd5 {[%clk 0:00:53]}  Kg7 {[%clk 0:00:21]} 40. b3 {[%clk 0:00:52]}  h5 {[%clk 0:00:21]} 41. Bc4 {[%clk 0:00:53]}  Kf6 {[%clk 0:00:20]} 42. Rd5 {[%clk 0:00:52]}  h4 {[%clk 0:00:18]} 43. Rd4 {[%clk 0:00:51]}  Kf5 {[%clk 0:00:16]} 44. Kf2 {[%clk 0:00:50]}  Rh1 {[%clk 0:00:14]} 45. e7 {[%clk 0:00:49]}  Rxh2+ {[%clk 0:00:12]} 46. Kg1 {[%clk 0:00:50]}  g3 {[%clk 0:00:11]} 47. e8=Q {[%clk 0:00:49]} 1-0


[Site "https://www.chess.com"]